Cogmind - Beta 10.2 @@@ ROGUE MODE // 2021.08.16 @ 16:53:20 Player: Gilgameshx13 Result: Destroyed by P-80 Master with Gamma Rifle Performance ------------- Evolutions (8) 4000 Regions Visited (14) 2800 Robots Destroyed (30) 150 Value Destroyed (1081) 1081 Prototype IDs (5) 100 Alien Tech Used (3) 600 Bonus (3991) 3991 TOTAL SCORE: 12722 Bonus ------- Follower Combat Kills 561 Used Core Reset Matrix 3000 Scanned by Researcher 500 Friendly Fire -70 Cogmind --------- Core Integrity 0/1450 Matter 290/300 Energy 170/170 System Corruption 16% Temperature Cool (0) Movement Flying (184) Ox2 Location -2/Quarantine Parts ------- > --- POWER (4) -------- Light Antimatter Reactor > --- PROPULSION (7) --- Xenon Bombardment Thruster Cooled Impulse Thruster > --- UTILITY (10) ----- High-capacity Storage Unit Advanced Signal Interpreter Advanced Core Analyzer > --- WEAPON (2) ------- (None) > --- INVENTORY (12) --- Small Storage Unit Advanced Component Analysis Suite Drone Bay (2/2) Heavy Machine Gun Peak State ------------ > --- POWER ------------ Antimatter Reactor Light Particle Reactor > --- PROPULSION ------- Field Propulsion Array Field Propulsion Array Impulse Thruster Array > --- UTILITY ---------- Advanced Heat Sink High-capacity Storage Unit Inertial Stasis Machine Long-range Sensor Array Advanced Signal Interpreter Advanced Signal Interpreter Advanced Transmission Jammer Improved ECM Suite Improved Cloaking Device > --- WEAPON ----------- Enhanced Quantum Rifle Enhanced Quantum Rifle > --- INVENTORY -------- Field Propulsion Array Cooled Impulse Thruster Cooled Impulse Thruster Cooled Impulse Thruster Cooled Impulse Thruster Advanced Transmission Jammer Advanced Component Analysis Suite Drone Bay Wave Gun [Rating: 125] Favorites ----------- Power Light Nuclear Core Engine Light Angular Momentum Engine Power Core Light Nuclear Core Reactor Antimatter Reactor Propulsion Field Propulsion Array Leg Aluminum Leg Wheel Compact Wheel Hover Unit Improved Antigrav System Flight Unit Field Propulsion Array Utility Large Storage Unit Device Improved ECM Suite Storage Large Storage Unit Processor Advanced Signal Interpreter Protection Light Armor Plating Artifact Matter Drive Weapon Chainsword Energy Gun Heavy Laser Energy Cannon Heavy Ion Cannon Ballistic Gun Gauss Rifle Ballistic Cannon Light Cannon Launcher Mini Grenade Launcher Slashing Weapon Chainsword Build | -11 -10 -9 -9 -8 -7 -7 -7 -6 -5 -4 -4 -3 -2 -2 ------- Run | Scr Mat Mat Min Mat Fac Was Fac Fac Fac Fac Ext Res Res Qua Slots Evolved 16 | . . 2 . 2 2 . . 2 2 2 . 2 2 . Power 3 | . . . . . . . . 1 . 1 . . 1 . Propulsion 5 | . . . . 2 . . . . 1 1 . . 1 . Utility 8 | . . 2 . . 2 . . 1 1 . . 2 . . Weapon . | . . . . . . . . . . . . . . . Parts Attached 150 | 6 1 4 17 22 2 2 16 7 13 3 16 13 9 19 Power 22 | 1 . 1 1 3 . . 3 2 . 2 4 1 2 2 Engine 5 | 1 . 1 1 1 . . . 1 . . . . . . Core 12 | . . . . 2 . . 3 1 . 2 3 . 1 . Reactor 5 | . . . . . . . . . . . 1 1 1 2 Propulsion 58 | 2 . 1 7 9 . 2 6 1 8 1 3 5 3 10 Treads . | . . . . . . . . . . . . . . . Leg 13 | . . . 4 6 . . 3 . . . . . . . Wheel 5 | 2 . 1 . . . . . 1 1 . . . . . Hover 4 | . . . 1 . . . . . 1 . . . . 2 Flight 36 | . . . 2 3 . 2 3 . 6 1 3 5 3 8 Utility 38 | 1 1 . 5 4 2 . 3 2 3 . 4 7 1 5 Device 22 | . . . 2 2 1 . 3 1 1 . 2 6 1 3 Storage 6 | 1 1 . 2 1 . . . . . . 1 . . . Processor 6 | . . . 1 . 1 . . 1 . . 1 1 . 1 Hackware . | . . . . . . . . . . . . . . . Protection 3 | . . . . 1 . . . . 2 . . . . . Artifact 1 | . . . . . . . . . . . . . . 1 Weapon 32 | 2 . 2 4 6 . . 4 2 2 . 5 . 3 2 Energy Gun 12 | 1 . 1 3 2 . . . . . . 1 . 3 1 Energy Cannon 1 | . . . . . . . 1 . . . . . . . Ballistic Gun 10 | 1 . . 1 1 . . 1 1 1 . 3 . . 1 Ballistic Cannon 1 | . . 1 . . . . . . . . . . . . Launcher 1 | . . . . 1 . . . . . . . . . . Special Weapon . | . . . . . . . . . . . . . . . Impact Weapon . | . . . . . . . . . . . . . . . Slashing Weapon 7 | . . . . 2 . . 2 1 1 . 1 . . . Piercing Weapon . | . . . . . . . . . . . . . . . Special Melee Weapon . | . . . . . . . . . . . . . . . Unidentified Prototypes 5 | . . . . 1 . . . . . . . 1 1 2 Parts Lost 76 | . 2 4 12 11 . . 4 2 1 2 3 4 10 21 Power 15 | . . 1 2 1 . . 1 . . 1 3 2 2 2 Propulsion 30 | . 1 1 5 5 . . . 1 1 1 . 1 3 11 Utility 19 | . . . 1 3 . . 3 1 . . . 1 3 7 Weapon 12 | . 1 2 4 2 . . . . . . . . 2 1 Highest Loss Streak 14 | . 1 4 4 5 . . 3 2 1 2 2 3 6 14 Average Slot Usage (%) 67 | . 77 49 58 74 92 66 71 72 78 84 79 70 59 41 Engine 2 | . 14 8 3 2 . . . 4 5 5 1 . . . Core 4 | . . . . 4 7 7 6 7 5 9 13 4 1 1 Leg 6 | . . . 15 15 30 5 3 . . . . . . . Wheel 1 | . 20 14 . . . . . . 3 . . . . . Flight 10 | . . . 1 5 . 12 15 19 16 26 17 13 13 15 Device 15 | . . . 14 13 23 23 17 21 17 15 20 26 21 7 Storage 7 | . 14 11 9 9 7 7 7 6 5 5 5 4 4 4 Processor 7 | . . . 2 4 7 7 7 9 11 10 13 14 9 7 Energy Gun 3 | . 14 4 6 7 7 1 . . . . . . 2 . Ballistic Gun 2 | . 14 4 3 2 7 1 1 . 4 5 2 . . . Slashing Weapon 2 | . . . . 5 . . 5 1 4 5 4 . . . Naked Turns . | . . . . . . . . . . . . . . . Heaviest Build 81 | 13 25 25 29 34 32 32 34 40 40 47 76 78 81 47 Greatest Support 84 | 26 26 26 20 45 45 45 35 34 42 56 78 78 84 50 Greatest Overweight (x) 13 | . 2 2 5 2 . . 2 1 2 1 . 1 1 13 Average Overweight (x) . | . . . . . . . . . . . . . . . Largest Inventory Capacity 16 | 6 10 10 16 10 10 10 10 10 10 10 12 12 12 12 Average Capacity 10 | 5 6 10 9 10 10 10 10 10 10 10 11 12 12 12 Most Carried 12 | 4 5 6 7 10 7 10 10 10 10 10 12 12 12 12 Average Carried 7 | 2 4 4 4 8 6 9 9 9 8 9 10 11 9 5 Final Capacity 12 | 6 10 10 10 10 10 10 10 10 10 10 12 12 12 12 Final Carried 12 | 4 5 6 6 8 6 10 10 6 10 10 12 9 7 4 Class Distribution -------------------- 35% | Mutant 21% | Scavenger-Mutant 15% | Infiltrator-Mutant 9% | Generator-Mutant 4% | Generator-Sprinter 4% | Scavenger-Sprinter 3% | Infiltrator-Sprinter Dominant Class ---------------- Mutant | -10/Materials Mutant | -9/Materials Mutant | -9/Mines Scavenger-Mutant | -8/Materials Scavenger-Skirmisher | -7/Factory Scout | -7/Waste Scavenger-Sprinter | -7/Factory Scavenger-Sprinter | -6/Factory Infiltrator-Mutant | -5/Factory Generator-Sprinter | -4/Factory Generator-Mutant | -4/Extension Infiltrator-Mutant | -3/Research Infiltrator-Mutant | -2/Research Scavenger-Mutant | -2/Quarantine Resources | -11 -10 -9 -9 -8 -7 -7 -7 -6 -5 -4 -4 -3 -2 -2 ----------- Run | Scr Mat Mat Min Mat Fac Was Fac Fac Fac Fac Ext Res Res Qua Matter Collected 1599 | 195 69 59 234 228 . . 79 . . 11 446 . 137 141 Remotely . | . . . . . . . . . . . . . . . Salvage Created 1187 | . 29 59 125 530 . . 79 . . 11 217 . 137 . Parts 58 | . 4 3 7 22 . . 5 . . 1 10 . 6 . Haulers Intercepted . | . . . . . . . . . . . . . . . Recyclers Shooed . | . . . . . . . . . . . . . . . Parts Field Recycled . | . . . . . . . . . . . . . . . Retrieved Matter . | . . . . . . . . . . . . . . . Parts Self-Destructed . | . . . . . . . . . . . . . . . Prevented . | . . . . . . . . . . . . . . . Kills | -11 -10 -9 -9 -8 -7 -7 -7 -6 -5 -4 -4 -3 -2 -2 ------- Run | Scr Mat Mat Min Mat Fac Was Fac Fac Fac Fac Ext Res Res Qua Combat Hostiles Destroyed 25 | . 2 2 5 10 . . 3 . . . 1 . 2 . Melee 4 | . . . . 4 . . . . . . . . . . Guns 15 | . 2 . 4 6 . . . . . . 1 . 2 . Cannons 6 | . . 2 1 . . . 3 . . . . . . . Classes Destroyed 9 | . 1 1 1 2 . . . . . 1 2 . 1 . Builder 2 | . . . . . . . . . . . 2 . . . Tunneler 1 | . . . . . . . . . . 1 . . . . Recycler 1 | . . . . . . . . . . . 1 . . . Watcher 1 | . . . . 1 . . . . . . . . . . Swarmer 8 | . 2 . 3 . . . 3 . . . . . . . Grunt 8 | . . . 2 5 . . . . . . 1 . . . Sentry 6 | . . 2 . 4 . . . . . . . . . . Hunter 1 | . . . . 1 . . . . . . . . . . Programmer 2 | . . . . . . . . . . . . . 2 . Best Kill Streak 3 | . 2 1 3 3 . . 3 . . 1 2 . 2 . Combat Bots Only 3 | . 2 1 3 3 . . 3 . . . 1 . 2 . Max Kills in Single Turn 1 | . 1 1 1 1 . . 1 . . 1 1 . 1 . Gunslinging . | . . . . . . . . . . . . . . . Exploded . | . . . . . . . . . . . . . . . Melee 1 | . . . . 1 . . . . . . . . . . Uniques/NPCs Destroyed . | . . . . . . . . . . . . . . . Combat | -11 -10 -9 -9 -8 -7 -7 -7 -6 -5 -4 -4 -3 -2 -2 -------- Run | Scr Mat Mat Min Mat Fac Was Fac Fac Fac Fac Ext Res Res Qua Damage Taken 8894 | . 314 600 811 935 . . 395 141 116 200 725 350 1054 3253 Core 2535 | . 112 190 178 185 . . 63 37 . 72 152 96 233 1217 Absorbed by Shields 192 | . . . . . . . . . . . 192 . . . Core Remaining (%) 76 | 100 55 . 8 66 . . 91 95 100 . 80 92 . . Volleys Fired 130 | . 3 25 42 20 . . 16 . . 1 4 . 18 1 Largest 2 | . 2 2 2 2 . . 1 . . 1 1 . 2 1 Hottest 188 | . 70 70 91 97 . . 65 . . 28 33 . 188 94 Shots Fired 157 | . 6 31 50 25 . . 16 . . 1 4 . 23 1 Gun 115 | . 6 13 43 24 . . . . . 1 4 . 23 1 Cannon 41 | . . 18 7 . . . 16 . . . . . . . Launcher 1 | . . . . 1 . . . . . . . . . . Special . | . . . . . . . . . . . . . . . Kinetic 75 | . 3 24 38 5 . . . . . 1 4 . . . Thermal 81 | . 3 7 12 19 . . 16 . . . . . 23 1 Explosive 1 | . . . . 1 . . . . . . . . . . Electromagnetic . | . . . . . . . . . . . . . . . Robot Hit Streak 17 | . 3 17 9 7 . . 6 . . . 3 . 5 . Robot Miss Streak 4 | . 2 2 3 2 . . 4 . . 1 2 . 3 . Penetration Max . | . . . . . . . . . . . . . . . Secondary Targets 2 | . 1 . . 1 . . . . . . . . . . Max Gunslinging Chain 1 | . 1 . . 1 . . . . . . . . . . Shots Hit Robots 137 | . 4 26 36 29 . . 10 . . 1 19 . 12 . Core Hits 48 | . 2 4 10 16 . . 3 . . 1 7 . 4 1 Critical Hits 1 | . . . . 1 . . . . . . . . . . Critical Kills 1 | . . . . 1 . . . . . . . . . . Critical Parts Destroyed . | . . . . . . . . . . . . . . . Melee Attacks 41 | . . . . 13 . . . . . 2 26 . . . Impact . | . . . . . . . . . . . . . . . Slashing 41 | . . . . 13 . . . . . 2 26 . . . Piercing . | . . . . . . . . . . . . . . . Sneak Attacks 5 | . . . . . . . . . . 1 4 . . . Combat Hostiles . | . . . . . . . . . . . . . . . Follow-up Attacks . | . . . . . . . . . . . . . . . Damage Inflicted 3690 | . 39 389 368 940 . . 270 . . 157 1053 . 465 9 Guns 1410 | . 39 124 293 394 . . . . . 23 72 . 465 . Cannons 606 | . . 265 71 . . . 270 . . . . . . . Explosions 164 | . . . . 164 . . . . . . . . . . Melee 1487 | . . . . 372 . . . . . 134 981 . . . Ramming 23 | . . . 4 10 . . . . . . . . . 9 Kinetic 803 | . 13 327 262 106 . . . . . 23 72 . . . Thermal 1213 | . 26 62 102 288 . . 270 . . . . . 465 . Explosive 164 | . . . . 164 . . . . . . . . . . Electromagnetic . | . . . . . . . . . . . . . . . Impact . | . . . . . . . . . . . . . . . Slashing 1487 | . . . . 372 . . . . . 134 981 . . . Piercing . | . . . . . . . . . . . . . . . Highest Corruption 15 | . . . . . . . . . . . . . 8 15 Average Corruption 5 | . . . . . . . . . . . . . 6 5 Corruption Purged . | . . . . . . . . . . . . . . . Effects 12 | . . . . . . . . . . . . . 5 7 Message Errors 4 | . . . . . . . . . . . . . 1 3 Matter Fused 2 | . . . . . . . . . . . . . 1 1 Heat Flow Errors 1 | . . . . . . . . . . . . . 1 . Energy Discharges 3 | . . . . . . . . . . . . . . 3 Targeting Errors 2 | . . . . . . . . . . . . . 2 . Overload Shots . | . . . . . . . . . . . . . . . Overflow Damage 234 | . . 2 . 3 . . 9 . . . 220 . . . Projectiles 11 | . . 2 . . . . 9 . . . . . . . Explosions 3 | . . . . 3 . . . . . . . . . . Melee 220 | . . . . . . . . . . . 220 . . . Knockbacks 1 | . . . 1 . . . . . . . . . . . Impact . | . . . . . . . . . . . . . . . Kinetic 1 | . . . 1 . . . . . . . . . . . Secondary . | . . . . . . . . . . . . . . . Self-Inflicted Damage 46 | . . . 1 41 . . . . . . . . . 4 Shots 1 | . . . . 1 . . . . . . . . . . Rammed 5 | . . . 1 2 . . . . . . . . . 2 Targets Rammed 8 | . . . 2 4 . . . . . . . . . 2 Kicked 3 | . . . 1 2 . . . . . . . . . . Crushed . | . . . . . . . . . . . . . . . Highest Temperature 461 | . 27 31 42 88 . . 7 3 23 355 199 . 461 . Average Temperature 104 | . 14 16 22 29 . . 5 3 9 137 78 . 241 . Received Heat Transfer 1417 | . 126 198 360 333 . . 36 48 27 51 97 69 72 . Effects 9 | . . . . . . . . . . 4 . . 5 . Shutdowns 4 | . . . . . . . . . . 2 . . 2 . Interference 5 | . . . . . . . . . . 2 . . 3 . Siege Activations . | . . . . . . . . . . . . . . . Robots Corrupted . | . . . . . . . . . . . . . . . Combat Hostiles . | . . . . . . . . . . . . . . . Parts Fried . | . . . . . . . . . . . . . . . Impact Corruptions . | . . . . . . . . . . . . . . . Robots Melted . | . . . . . . . . . . . . . . . Combat Hostiles . | . . . . . . . . . . . . . . . Parts Melted 4 | . . . . . . . . . . . . . 4 . Heat Transferred 1924 | . 74 185 259 555 . . 370 . . . . . 481 . Parts Sabotaged . | . . . . . . . . . . . . . . . Parts Stolen . | . . . . . . . . . . . . . . . Parts Stripped . | . . . . . . . . . . . . . . . Power Chain Reactions . | . . . . . . . . . . . . . . . Missiles Intercepted . | . . . . . . . . . . . . . . . Alert | -11 -10 -9 -9 -8 -7 -7 -7 -6 -5 -4 -4 -3 -2 -2 ------- Run | Scr Mat Mat Min Mat Fac Was Fac Fac Fac Fac Ext Res Res Qua Peak Influence 1137 | . 75 92 110 224 40 29 108 67 72 144 1137 538 337 270 Initial 458 | . . 27 35 33 40 14 20 52 22 35 70 458 294 180 Average 187 | . 34 40 80 108 40 20 55 52 46 74 547 509 310 228 Maximum Alert Level 4 | . . . . 1 . . . . . . 4 2 1 1 Low Security (%) 70 | 100 100 100 100 95 100 100 100 100 100 100 39 . . 4 Level 1 17 | . . . . 4 . . . . . . 9 . 100 95 Level 2 6 | . . . . . . . . . . . 5 100 . . Level 3 4 | . . . . . . . . . . . 37 . . . Level 4 1 | . . . . . . . . . . . 8 . . . Level 5 . | . . . . . . . . . . . . . . . High Security . | . . . . . . . . . . . . . . . Max Security . | . . . . . . . . . . . . . . . Squads Dispatched 10 | . 1 1 . 2 . . . . 1 . . 1 . 4 Investigation . | . . . . . . . . . . . . . . . Extermination 1 | . . . . . . . . . . . . . . 1 Reinforcement 8 | . 1 1 . 2 . . . . 1 . . . . 3 Assault 1 | . . . . . . . . . . . . 1 . . Garrison . | . . . . . . . . . . . . . . . Intercept . | . . . . . . . . . . . . . . . Construction Impeded 1 | . . . . 1 . . . . . . . . . . Haulers Reinforced . | . . . . . . . . . . . . . . . Stealth | -11 -10 -9 -9 -8 -7 -7 -7 -6 -5 -4 -4 -3 -2 -2 --------- Run | Scr Mat Mat Min Mat Fac Was Fac Fac Fac Fac Ext Res Res Qua Distress Signals 7 | . 1 . . 4 . . . . . . 1 . . 1 Communications Jammed 4 | . . . . . . . . . . . 4 . . . Distress Signals 4 | . . . . . . . . . . . 4 . . . Times Spotted 126 | . 9 5 11 14 . 6 5 1 2 8 20 8 14 23 Peak Tracking Total 11 | . 5 2 3 5 . 6 3 1 1 6 5 4 11 11 Tactical Retreats 17 | . 1 . 2 1 . . 1 . 1 1 4 1 . 5 Traps | -11 -10 -9 -9 -8 -7 -7 -7 -6 -5 -4 -4 -3 -2 -2 ------- Run | Scr Mat Mat Min Mat Fac Was Fac Fac Fac Fac Ext Res Res Qua Traps Triggered 3 | . . . . . 1 . . . . . 2 . . . Indirectly . | . . . . . . . . . . . . . . . Trap Hack Attempts . | . . . . . . . . . . . . . . . Triggered . | . . . . . . . . . . . . . . . Disarmed . | . . . . . . . . . . . . . . . Reprogrammed . | . . . . . . . . . . . . . . . Reused . | . . . . . . . . . . . . . . . Traps Extracted . | . . . . . . . . . . . . . . . Installed . | . . . . . . . . . . . . . . . Triggered . | . . . . . . . . . . . . . . . Machines | -11 -10 -9 -9 -8 -7 -7 -7 -6 -5 -4 -4 -3 -2 -2 ---------- Run | Scr Mat Mat Min Mat Fac Was Fac Fac Fac Fac Ext Res Res Qua Machines Disabled 3 | . . . . 2 . . . . . . . . . 1 Max in Single Turn 1 | . . . . 1 . . . . . . . . . 1 Garrison Access 1 | . . . . . . . . . . . . 1 . . Machines Sabotaged . | . . . . . . . . . . . . . . . Garrisons Compromised . | . . . . . . . . . . . . . . . Overloaded Fab Kills . | . . . . . . . . . . . . . . . Fab Network Shutdowns . | . . . . . . . . . . . . . . . Hacking | -11 -10 -9 -9 -8 -7 -7 -7 -6 -5 -4 -4 -3 -2 -2 --------- Run | Scr Mat Mat Min Mat Fac Was Fac Fac Fac Fac Ext Res Res Qua Machines Accessed 6 | . . . . . . . . . . 1 5 . . . Terminals 6 | . . . . . . . . . . 1 5 . . . Fabricators . | . . . . . . . . . . . . . . . Repair Stations . | . . . . . . . . . . . . . . . Recycling Units . | . . . . . . . . . . . . . . . Scanalyzers . | . . . . . . . . . . . . . . . Garrison Access . | . . . . . . . . . . . . . . . Total Hacks 8 | . . . . . . . . . . 1 7 . . . Successful 6 | . . . . . . . . . . 1 5 . . . Failed 2 | . . . . . . . . . . . 2 . . . Catastrophic . | . . . . . . . . . . . . . . . Database Lockouts . | . . . . . . . . . . . . . . . Manual . | . . . . . . . . . . . . . . . Terminals 8 | . . . . . . . . . . 1 7 . . . Fabricators . | . . . . . . . . . . . . . . . Repair Stations . | . . . . . . . . . . . . . . . Recycling Units . | . . . . . . . . . . . . . . . Scanalyzers . | . . . . . . . . . . . . . . . Garrison Access . | . . . . . . . . . . . . . . . Terminal Hacks 6 | . . . . . . . . . . 1 5 . . . Open Door 6 | . . . . . . . . . . 1 5 . . . Fabricator Hacks . | . . . . . . . . . . . . . . . Repair Station Hacks . | . . . . . . . . . . . . . . . Recycling Unit Hacks . | . . . . . . . . . . . . . . . Scanalyzer . | . . . . . . . . . . . . . . . Garrison Access Hacks . | . . . . . . . . . . . . . . . Unauthorized Hacks . | . . . . . . . . . . . . . . . Terminals . | . . . . . . . . . . . . . . . Fabricators . | . . . . . . . . . . . . . . . Repair Stations . | . . . . . . . . . . . . . . . Recycling Units . | . . . . . . . . . . . . . . . Scanalyzers . | . . . . . . . . . . . . . . . Garrison Access . | . . . . . . . . . . . . . . . Data Cores Recovered . | . . . . . . . . . . . . . . . Used . | . . . . . . . . . . . . . . . Hacking Detections 2 | . . . . . . . . . . . 2 . . . Full Trace Events . | . . . . . . . . . . . . . . . Feedback Events . | . . . . . . . . . . . . . . . Feedback Blocked . | . . . . . . . . . . . . . . . Robot Schematics Acquired . | . . . . . . . . . . . . . . . Robots Built . | . . . . . . . . . . . . . . . Matter . | . . . . . . . . . . . . . . . Time . | . . . . . . . . . . . . . . . Total Robot Build Rating . | . . . . . . . . . . . . . . . Part Schematics Acquired . | . . . . . . . . . . . . . . . Parts Built . | . . . . . . . . . . . . . . . Matter . | . . . . . . . . . . . . . . . Time . | . . . . . . . . . . . . . . . Total Part Build Rating . | . . . . . . . . . . . . . . . Parts Repaired . | . . . . . . . . . . . . . . . Time . | . . . . . . . . . . . . . . . Parts Recycled . | . . . . . . . . . . . . . . . Recycled Matter . | . . . . . . . . . . . . . . . Retrieved Matter . | . . . . . . . . . . . . . . . Retrieved Components . | . . . . . . . . . . . . . . . Parts Scanalyzed . | . . . . . . . . . . . . . . . Part Schematics Acquired . | . . . . . . . . . . . . . . . Parts Damaged . | . . . . . . . . . . . . . . . Bothacking | -11 -10 -9 -9 -8 -7 -7 -7 -6 -5 -4 -4 -3 -2 -2 ------------ Run | Scr Mat Mat Min Mat Fac Was Fac Fac Fac Fac Ext Res Res Qua Used RIF Installer . | . . . . . . . . . . . . . . . Robots Hacked . | . . . . . . . . . . . . . . . Non-combat . | . . . . . . . . . . . . . . . Combat . | . . . . . . . . . . . . . . . Robot Hacks Applied . | . . . . . . . . . . . . . . . Relay Couplers Released 3 | . . . . . . . . . . . . 3 . . Machine Destruction 3 | . . . . . . . . . . . . 3 . . Robots Rewired . | . . . . . . . . . . . . . . . Allies Hacked . | . . . . . . . . . . . . . . . Hacks Repelled . | . . . . . . . . . . . . . . . Allies | -11 -10 -9 -9 -8 -7 -7 -7 -6 -5 -4 -4 -3 -2 -2 -------- Run | Scr Mat Mat Min Mat Fac Was Fac Fac Fac Fac Ext Res Res Qua Total Allies 19 | . . . 3 . . . . . . . 9 . . 7 Largest Group 7 | . . . 3 3 . . . . . . 5 1 . 7 Highest-Rated Group 310 | . . . 40 40 . . . . . . 310 156 . 99 Highest-Rated Ally 156 | . . . 16 16 . . . . . . 156 156 . 15 Total Orders . | . . . . . . . . . . . . . . . Ally Attacks 118 | . . . 11 26 . . . . . . 54 . . 27 Total Damage 2734 | . . . 123 261 . . . . . . 1519 . . 831 Kills 20 | . . . 2 1 . . . . . . 12 . . 5 Allies Corrupted . | . . . . . . . . . . . . . . . Allies Melted . | . . . . . . . . . . . . . . . Intel | -11 -10 -9 -9 -8 -7 -7 -7 -6 -5 -4 -4 -3 -2 -2 ------- Run | Scr Mat Mat Min Mat Fac Was Fac Fac Fac Fac Ext Res Res Qua Robot Analysis Total . | . . . . . . . . . . . . . . . Derelict Logs Recovered . | . . . . . . . . . . . . . . . Drone Launches . | . . . . . . . . . . . . . . . Drone Recoveries . | . . . . . . . . . . . . . . . Exploration | -11 -10 -9 -9 -8 -7 -7 -7 -6 -5 -4 -4 -3 -2 -2 ------------- Run | Scr Mat Mat Min Mat Fac Was Fac Fac Fac Fac Ext Res Res Qua Turns Passed 3298 | 53 95 167 597 533 70 62 186 88 176 131 435 182 194 329 Spaces Moved 4134 | 43 89 97 424 272 57 146 292 212 163 349 897 429 350 314 Core 6 | 3 . . 1 . . . . . . . . . . 2 Treads . | . . . . . . . . . . . . . . . Legs 627 | . . . 281 272 57 4 13 . . . . . . . Wheels 330 | 40 89 97 . . . . . 4 100 . . . . . Hover 11 | . . . 2 . . . . . . . . . . 9 Flight 3160 | . . . 140 . . 142 279 208 63 349 897 429 350 303 Fastest Speed 23 | 50 90 90 40 120 120 34 32 32 27 24 27 34 29 23 Average Speed 58 | 87 92 102 111 148 120 36 38 33 89 26 32 34 33 73 Slowest Speed 700 | 100 100 110 360 180 120 120 194 110 200 105 34 117 114 700 Overloaded Moves . | . . . . . . . . . . . . . . . Propulsion Burnouts . | . . . . . . . . . . . . . . . Robots Hopped 28 | . . . 9 . . . . 4 . . . 4 4 7 Cave-ins Triggered . | . . . . . . . . . . . . . . . Teleports 1 | . . . . . . . . . . . . . . 1 Exploration Rate (%) 25 | 3 21 13 76 20 2 86 7 7 4 12 73 16 10 31 Regions Visited 14 Branch Regions 3 Pre-discovered Areas . | . . . . . . . . . . . . . . . Known Exits Taken 3 | . . . . . . . . . . . 1 1 1 . Unknown Exits Taken 9 | 1 1 1 1 1 . . 1 1 1 1 . . . . Scrap Searched 2 | . . . 2 . . . . . . . . . . . Spaces Dug . | . . . . . . . . . . . . . . . Terrain Destroyed 17 | . . . . 12 . . 3 . . . . . 2 . Melee . | . . . . . . . . . . . . . . . Projectile 5 | . . . . . . . 3 . . . . . 2 . AOE 12 | . . . . 12 . . . . . . . . . . Terrain Rammed . | . . . . . . . . . . . . . . . Walls Destroyed . | . . . . . . . . . . . . . . . Machines Disabled . | . . . . . . . . . . . . . . . Actions | -11 -10 -9 -9 -8 -7 -7 -7 -6 -5 -4 -4 -3 -2 -2 --------- Run | Scr Mat Mat Min Mat Fac Was Fac Fac Fac Fac Ext Res Res Qua Total 4792 | 58 95 133 498 354 59 159 352 228 199 385 1001 465 402 404 Wait 104 | . . 3 6 1 . . 5 1 . 14 19 . 23 32 Move 4070 | 42 88 96 407 271 57 145 291 203 162 348 896 421 341 302 Hop 23 | . . . 7 . . . . 4 . . . 3 4 5 Pick Up 143 | 10 2 5 14 19 . 4 14 6 11 9 13 13 6 17 Fast Attach . | . . . . . . . . . . . . . . . Attach 132 | 6 . 4 17 17 2 2 13 6 13 3 10 10 8 21 Detach 34 | . . . 3 2 . 4 3 1 8 . 8 4 . 1 Swap 20 | . 1 . . 5 . . 3 1 . . 6 3 1 . Drop 54 | . 1 . . 2 . 4 7 6 5 8 7 11 1 2 Fire 130 | . 3 25 42 20 . . 16 . . 1 4 . 18 1 Melee 41 | . . . . 13 . . . . . 2 26 . . . Ram 2 | . . . . . . . . . . . . . . 2 Kick 6 | . . . 2 4 . . . . . . . . . . Crush . | . . . . . . . . . . . . . . . Escape Stasis 33 | . . . . . . . . . . . 12 . . 21 Rewire . | . . . . . . . . . . . . . . . Trap . | . . . . . . . . . . . . . . . Miscellaneous . | . . . . . . . . . . . . . . . Route ------- -11/Scrapyard -10/Materials -9/Materials -9/Mines -8/Materials -7/Factory -7/Waste -7/Factory -6/Factory -5/Factory -4/Factory -4/Extension (discovered 2 exits: *Res / *Cet) -3/Research -2/Research -2/Quarantine History --------- Turn | Location | Event 12 | -11/Scrapyard | Discovered new exit (range 15) 54 | -11/Scrapyard | Entered Materials 136 | -10/Materials | Discovered new exit (range 14) 149 | -10/Materials | Entered another Materials area 149 | -9/Materials | Evolved 2 slots: Utility x2 263 | -9/Materials | Lost 4 parts (1p1n2w) 298 | -9/Materials | Discovered new exit (range 16) 301 | -9/Materials | Build established: Mutant 316 | -9/Materials | Entered Mines 325 | -9/Mines | Core integrity fell below 50% 368 | -9/Mines | Lost 3 parts (1p1n1w) 658 | -9/Mines | Core integrity fell below 20% 714 | -9/Mines | Assisted by bots powering up and referring to "LRC-V3" 719 | -9/Mines | Lost 4 parts (3n1u) 895 | -9/Mines | Discovered new exit (range 11) 913 | -9/Mines | Entered Materials 913 | -8/Materials | Accompanied by 3 allies 913 | -8/Materials | Evolved 2 slots: Propulsion x2 1155 | -8/Materials | Lost 3 parts (2n1u) 1212 | -8/Materials | Lost 5 parts (1p1n1u2w) 1419 | -8/Materials | Discovered new exit (range 16) 1446 | -8/Materials | Entered Factory 1446 | -7/Factory | Evolved 2 slots: Utility x2 1516 | -7/Factory | Sucked down chute 1516 | -7/Factory | Entered Waste 1552 | -7/Waste | Spotted C-40 Crusher 1553 | -7/Waste | Spotted C-40 Crusher 1559 | -7/Waste | Spotted C-40 Crusher 1561 | -7/Waste | Spotted C-40 Crusher 1561 | -7/Waste | Spotted C-40 Crusher 1562 | -7/Waste | Spotted C-40 Crusher 1575 | -7/Waste | Discovered new exit (range 11) 1578 | -7/Waste | Entered Factory 1670 | -7/Factory | Lost 3 parts (3u) 1717 | -7/Factory | Discovered new exit (range 17) 1764 | -7/Factory | Entered another Factory area 1764 | -6/Factory | Evolved 2 slots: Power x1, Utility x1 1842 | -6/Factory | Discovered new exit (range 8) 1852 | -6/Factory | Entered another Factory area 1852 | -5/Factory | Evolved 2 slots: Propulsion x1, Utility x1 2020 | -5/Factory | Discovered new exit (range 13) 2028 | -5/Factory | Entered another Factory area 2028 | -4/Factory | Evolved 2 slots: Power x1, Propulsion x1 2157 | -4/Factory | Discovered new exit (range 10) 2159 | -4/Factory | Entered Extension 2188 | -4/Extension | Rescued a captive Derelict 2189 | -4/Extension | Rescued a captive Derelict 2301 | -4/Extension | Rescued a captive Derelict 2302 | -4/Extension | Rescued a captive Derelict 2335 | -4/Extension | Spotted B-86 Titan 2337 | -4/Extension | Spotted B-86 Titan 2457 | -4/Extension | Rescued a captive Derelict 2459 | -4/Extension | Rescued a captive Derelict 2474 | -4/Extension | Rescued A7 2505 | -4/Extension | Rescued a captive Derelict 2508 | -4/Extension | Rescued a captive Derelict 2527 | -4/Extension | Build established: Generator-Mutant 2566 | -4/Extension | Discovered new exit (range 18) 2566 | -4/Extension | Discovered new exit (range 18) 2572 | -4/Extension | Identified exit to Cetus 2582 | -4/Extension | Identified exit to Research 2594 | -4/Extension | Entered Research 2594 | -3/Research | Accompanied by 1 ally (A7) 2594 | -3/Research | Evolved 2 slots: Utility x2 2768 | -3/Research | Discovered new exit (range 6) 2770 | -3/Research | Identified exit to Research 2776 | -3/Research | Entered another Research area 2776 | -2/Research | Evolved 2 slots: Power x1, Propulsion x1 2805 | -2/Research | Lost 3 parts (1p1n1u) 2875 | -2/Research | Build established: Infiltrator-Mutant 2906 | -2/Research | Lost 4 parts (1p2u1w) 2967 | -2/Research | Discovered new exit (range 10) 2970 | -2/Research | Identified exit to Quarantine 2970 | -2/Research | Entered Quarantine 2998 | -2/Quarantine | Lost 6 parts (1p3n1u1w) 3010 | -2/Quarantine | Found Alien Artifact 3011 | -2/Quarantine | Identified Core Reset Matrix 3011 | -2/Quarantine | Used Core Reset Matrix 3015 | -2/Quarantine | Detected hypermatrix surge 3015 | -2/Quarantine | Sensed 11 artifacts in vicinity 3056 | -2/Quarantine | Scanned by Researcher 3062 | -2/Quarantine | Found Matter Drive 3074 | -2/Quarantine | Core integrity fell below 50% 3080 | -2/Quarantine | Emitted hypermatrix ping 3085 | -2/Quarantine | Assembled emerged from beneath the floor 3114 | -2/Quarantine | Lost 14 parts (1p6n6u1w) 3161 | -2/Quarantine | Core integrity fell below 20% 3168 | -2/Quarantine | Found Hpw. Transdimensional Reconstructor 3169 | -2/Quarantine | Warped through subspace 3290 | -2/Quarantine | System corruption reached 10% 3299 | -2/Quarantine | Destroyed by P-80 Master with Gamma Rifle Last Messages --------------- [Achievement: Subspace Traveler] Acquired Unknown Hover Unit. Identified Imp. Antigrav System. Acquired Unknown Processor. Identified Adv. Core Analyzer. C-65 Expert calibrates the Research Mainframe. O-32 Director: "IFF HANDSHAKE FAILED. SECURING TERMINAL." C-65 Expert calibrates the Research Mainframe. ALERT: Rogue bot located, Programmers report to Quarantine Zone 1P. ALERT: Hostiles spotted, dispatching reinforcements to Terminal Q005. U-05 Engineer lays Concrete. Critical hit. Xenon Bombardment Thruster destroyed. 7LTQP N| 6ZZT20MS